fUST/lending_fUST_20241205
["ID","MTS","AMOUNT","RATE_DAILY","PERIOD"]
[344375084,1733390511496,-151.0,0.00021917,2]
[344375085,1733390511517,-151.0,0.00021917,2]
[344375086,1733390511538,-151.0,0.00021917,2]
[344375087,1733390511559,-151.0,0.00021917,2]
[344375088,1733390511580,-151.0,0.00021917,2]
[344375089,1733390511600,-300.46646,0.00021917,2]
[344375090,1733390511623,-500.0,0.00021917,2]
[344375091,1733390511643,-500.0,0.00021917,2]
[344375092,1733390511664,-500.0,0.00021917,2]
[344375093,1733390511685,-500.0,0.00021917,2]
[344375094,1733390511709,-548.05142713,0.00021917,2]
[344375095,1733390511731,-500.0,0.00021917,2]
[344375096,1733390511752,-500.0,0.00021917,2]
[344375097,1733390511774,-500.0,0.00021917,2]
[344375098,1733390511796,-500.0,0.00021917,2]
[344375099,1733390511817,-446.87243107,0.00021917,2]
[344375100,1733390511838,-500.0,0.00021917,2]
[344375101,1733390511860,-500.0,0.00021917,2]
[344375102,1733390511882,-500.0,0.00021917,2]
[344375103,1733390511903,-500.0,0.00021917,2]
[344375104,1733390511925,-500.0,0.00021917,2]
[344375105,1733390511946,-1000.0,0.00021917,10]
[344375106,1733390511967,-200.0,0.00021917,2]
[344375107,1733390511989,-303.62686677,0.00021917,2]
[344375108,1733390512010,-500.0,0.00021917,2]
[344375109,1733390512031,-500.0,0.00021917,2]
[344375110,1733390512052,-500.0,0.00021917,2]
[344375111,1733390512074,-151.0,0.00021917,2]
[344375112,1733390512096,-151.0,0.00021917,2]
[344375113,1733390512121,-151.0,0.00021917,2]
[344375114,1733390512144,-151.0,0.00021917,2]
[344375115,1733390512167,-151.0,0.00021917,2]
[344375116,1733390512189,-500.0,0.00021917,2]
[344375117,1733390512218,-157.326528,0.00021917,2]
[344375118,1733390512241,-151.0,0.00021917,2]
[344375119,1733390512265,-211.9189,0.00021917,2]
[344375120,1733390512287,-211.9189,0.00021917,2]
[344375121,1733390512309,-500.0,0.00021917,2]
[344375122,1733390512329,-211.9189,0.00021917,2]
[344375123,1733390512351,-211.9189,0.00021917,2]
[344375124,1733390512374,-500.0,0.00021917,2]
[344375125,1733390512395,-211.9189,0.00021917,2]
[344375126,1733390512416,-211.9189,0.00021917,2]
[344375127,1733390512438,-211.9189,0.00021917,2]
[344375128,1733390512460,-211.918892,0.00021917,2]
[344375129,1733390512480,-500.0,0.00021917,2]
[344375130,1733390512502,-500.0,0.00021917,2]
[344375131,1733390512523,-500.0,0.00021917,2]
[344375132,1733390512544,-500.0,0.00021917,2]
[344375133,1733390512566,-500.0,0.00021917,2]
[344375134,1733390512588,-531.90964486,0.00021917,2]
[344375135,1733390512611,-500.0,0.00021917,2]
[344375136,1733390512632,-500.0,0.00021917,2]
[344375137,1733390512653,-500.0,0.00021917,2]
[344375138,1733390512675,-500.0,0.00021917,2]
[344375139,1733390512697,-675.21,0.00021917,2]
[344375140,1733390512718,-500.0,0.00021917,2]
[344375141,1733390512740,-500.0,0.00021917,2]
[344375142,1733390512762,-500.0,0.00021917,2]
[344375143,1733390512784,-504.68175024,0.00021917,2]
[344375144,1733390512805,-500.0,0.00021917,2]
[344375145,1733390512827,-500.0,0.00021917,2]
[344375146,1733390512850,-676.0,0.00021917,2]
[344375147,1733390512873,-500.0,0.00021917,2]
[344375148,1733390512897,-691.29,0.00021917,2]
[344375149,1733390512918,-394.03271906,0.00021917,2]
[344375150,1733390512940,-500.0,0.00021917,2]
[344375151,1733390512961,-500.0,0.00021917,2]
[344375152,1733390512983,-500.0,0.00021917,2]
[344375153,1733390513004,-500.0,0.00021917,2]
[344375154,1733390513026,-754.21,0.00021917,2]
[344375155,1733390513048,-500.0,0.00021917,2]
[344375156,1733390513070,-173.64969957,0.00021917,2]
[344375157,1733390513093,-1001.41,0.00021917,2]
[344375158,1733390513117,-500.0,0.00021917,2]
[344375159,1733390513139,-500.0,0.00021917,2]
[344375160,1733390513244,-500.0,0.00021917,2]
[344375161,1733390513267,-576.97,0.00021917,2]
[344375162,1733390513288,-649.89,0.00021917,2]
[344375163,1733390513312,-500.0,0.00021917,2]
[344375164,1733390513334,-500.0,0.00021917,2]
[344375165,1733390513355,-503.43,0.00021917,2]
[344375166,1733390513380,-8986.01,0.00021917,2]
[344375167,1733390513402,-500.0,0.00021917,2]
[344375168,1733390513424,-834.8,0.00021917,2]
[344375169,1733390513446,-623.64897787,0.00021917,2]
[344375170,1733390513468,-500.0,0.00021917,2]
[344375171,1733390513490,-500.0,0.00021917,2]
[344375172,1733390513512,-500.0,0.00021917,2]
[344375173,1733390513534,-500.0,0.00021917,2]
[344375174,1733390513557,-579.55663475,0.00021917,2]
[344375175,1733390513579,-500.0,0.00021917,2]
[344375176,1733390513601,-500.0,0.00021917,2]
[344375177,1733390513625,-500.0,0.00021917,2]
[344375178,1733390513646,-505.64085224,0.00021917,2]
[344375179,1733390513669,-500.0,0.00021917,2]
[344375180,1733390513691,-500.0,0.00021917,2]
[344375181,1733390513715,-500.0,0.00021917,2]
[344375182,1733390513738,-500.0,0.00021917,2]
[344375183,1733390513760,-500.0,0.00021917,2]
[344375184,1733390513784,-1618.19,0.00021917,2]
[344375185,1733390513805,-500.0,0.00021917,2]
[344375186,1733390513828,-500.0,0.00021917,2]
[344375187,1733390513849,-500.0,0.00021917,2]
[344375188,1733390513875,-500.0,0.00021917,2]
[344375189,1733390513897,-500.0,0.00021917,2]
[344375190,1733390513919,-500.0,0.00021917,2]
[344375191,1733390513940,-500.0,0.00021917,2]
[344375192,1733390513962,-512.5,0.00021917,2]
[344375193,1733390513984,-692.47,0.00021917,2]
[344375194,1733390514007,-544.26,0.00021917,2]
[344375195,1733390514032,-500.0,0.00021917,2]
[344375196,1733390514058,-5574.36,0.00021917,2]
[344375197,1733390514080,-500.0,0.00021917,2]
[344375198,1733390514103,-500.0,0.00021917,2]
[344375199,1733390514127,-500.0,0.00021917,2]
[344375200,1733390514149,-500.0,0.00021917,2]
[344375201,1733390514171,-500.0,0.00021917,2]
[344375202,1733390514194,-500.0,0.00021917,2]
[344375203,1733390514220,-155.66074075,0.00021917,2]
[344375204,1733390514243,-347.13427454,0.00021917,2]
[344375205,1733390514267,-500.0,0.00021917,2]
[344375206,1733390514291,-526.51,0.00021917,2]
[344375207,1733390514313,-500.0,0.00021917,2]
[344375208,1733390514334,-1222.44,0.00021917,2]
[344375209,1733390514356,-500.0,0.00021917,2]
[344375210,1733390514380,-535.19,0.00021917,2]
[344375211,1733390514401,-500.0,0.00021917,2]
[344375212,1733390514422,-500.0,0.00021917,2]
[344375213,1733390514444,-526.75,0.00021917,2]
[344375214,1733390514466,-500.0,0.00021917,2]
[344375215,1733390514487,-500.0,0.00021917,2]
[344375216,1733390514510,-500.0,0.00021917,2]
[344375217,1733390514532,-770.38,0.00021917,2]
[344375218,1733390514555,-676.78,0.00021917,2]
[344375219,1733390514576,-547.76895357,0.00021917,2]
[344375220,1733390514598,-500.0,0.00021917,2]
[344375221,1733390514620,-500.0,0.00021917,2]
[344375222,1733390514642,-1983.95,0.00021917,2]
[344375223,1733390514668,-569.71441311,0.00021917,2]
[344375224,1733390514688,-500.0,0.00021917,2]
[344375225,1733390514710,-500.0,0.00021917,2]
[344375226,1733390514731,-500.0,0.00021917,2]
[344375227,1733390514751,-500.0,0.00021917,2]
[344375228,1733390514773,-510.73901002,0.00021917,2]
[344375229,1733390514794,-500.0,0.00021917,2]
[344375230,1733390514818,-506.76791588,0.00021917,2]
[344375231,1733390514840,-500.0,0.00021917,2]
[344375232,1733390514861,-500.0,0.00021917,2]
[344375233,1733390514884,-500.0,0.00021917,2]
[344375234,1733390514906,-500.0,0.00021917,2]
[344375235,1733390514928,-500.0,0.00021917,2]
[344375236,1733390514951,-684.58,0.00021917,2]
[344375237,1733390514973,-716.61,0.00021917,2]
[344375238,1733390514995,-500.0,0.00021917,2]
[344375239,1733390515015,-648.34647328,0.00021917,2]
[344375240,1733390515038,-1022.43,0.00021917,2]
[344375241,1733390515135,-507.66193599,0.00021917,2]
[344375242,1733390515157,-500.0,0.00021917,2]
[344375243,1733390515179,-500.0,0.00021917,2]
[344375244,1733390515201,-500.0,0.00021917,2]
[344375245,1733390515226,-1219.95,0.00021917,2]
[344375246,1733390515247,-507.99007707,0.00021917,2]
[344375247,1733390515269,-500.0,0.00021917,2]
[344375248,1733390515291,-500.0,0.00021917,2]
[344375249,1733390515312,-171.83177671,0.00021917,2]
[344375250,1733390515332,-1021.4313004,0.00021969,2]
[344375251,1733390515353,-151.0,0.00021973,7]
[344375252,1733390515374,-318.0,0.00022,2]
[344375253,1733390515394,-157.0,0.00022,2]
[344375254,1733390515415,-153.0,0.00022002,2]
[344375255,1733390515435,-179.366684,0.0002217,2]
[344375256,1733390515456,-150.01,0.0002219,2]
[344375257,1733390515477,-2955.06970957,0.0002219,2]
[344375258,1733390515498,-535.70910749,0.0002219,2]
[344375259,1733390515520,-500.0,0.00022191,2]
[344375260,1733390515541,-500.0,0.00022191,2]
[344375261,1733390515563,-500.0,0.00022191,2]
[344375262,1733390515585,-500.0,0.00022191,2]
[344375263,1733390515610,-500.0,0.00022191,2]
[344375264,1733390515630,-500.0,0.00022191,2]
[344375265,1733390515651,-500.0,0.00022191,2]
[344375266,1733390515672,-500.0,0.00022191,2]
[344375267,1733390515692,-500.0,0.00022191,2]
[344375268,1733390515714,-500.0,0.00022191,2]
[344375269,1733390515735,-509.69181365,0.00022191,2]
[344375270,1733390515758,-166.10765683,0.00022191,2]
[344375271,1733390515779,-500.0,0.00022191,2]
[344375272,1733390515801,-500.0,0.00022191,2]
[344375273,1733390515823,-564.78,0.00022191,2]
[344375274,1733390515845,-500.0,0.00022191,2]
[344375275,1733390515867,-500.0,0.00022191,2]
[344375276,1733390515888,-507.04163794,0.00022191,2]
[344375277,1733390515909,-500.0,0.00022191,2]
[344375278,1733390515930,-500.0,0.00022191,2]
[344375279,1733390515951,-500.0,0.00022191,2]
[344375280,1733390515972,-506.31114677,0.00022191,2]
[344375281,1733390515994,-500.0,0.00022191,2]
[344375282,1733390516016,-397.4286164,0.00022191,2]
[344375283,1733390516037,-500.0,0.00022191,2]
[344375284,1733390516059,-500.0,0.00022191,2]
[344375285,1733390516081,-500.0,0.00022191,2]
[344375286,1733390516104,-500.0,0.00022191,2]
[344375287,1733390516126,-500.0,0.00022191,2]
[344375288,1733390516148,-500.0,0.00022191,2]
[344375289,1733390516170,-151.0,0.00022191,7]
[344375290,1733390516193,-500.0,0.00022191,2]
[344375291,1733390516217,-544.74151173,0.00022191,2]
[344375292,1733390516239,-500.0,0.00022191,2]
[344375293,1733390516261,-500.0,0.00022191,2]
[344375294,1733390516284,-500.0,0.00022191,2]
[344375295,1733390516306,-510.11544493,0.00022191,2]
[344375296,1733390516327,-500.0,0.00022191,2]
[344375297,1733390516348,-500.0,0.00022191,2]
[344375298,1733390516370,-500.0,0.00022191,2]
[344375299,1733390516392,-513.29738134,0.00022191,2]
[344375300,1733390516415,-500.0,0.00022191,2]
[344375301,1733390516436,-500.0,0.00022191,2]
[344375302,1733390516456,-1000.0,0.00022191,10]
[344375303,1733390516478,-200.0,0.00022191,2]
[344375304,1733390516498,-500.0,0.00022191,2]
[344375305,1733390516519,-500.0,0.00022191,2]
[344375306,1733390516540,-267.68354271,0.00022191,2]
[344375307,1733390516574,-500.0,0.00022191,2]
[344375308,1733390516596,-500.0,0.00022191,2]
[344375309,1733390516619,-500.0,0.00022191,2]
[344375310,1733390516642,-500.0,0.00022191,2]
[344375311,1733390516663,-500.0,0.00022191,2]
[344375312,1733390516685,-500.0,0.00022191,2]
[344375313,1733390516707,-500.0,0.00022191,2]
[344375314,1733390516730,-500.0,0.00022191,2]
[344375315,1733390516752,-500.0,0.00022191,2]
[344375316,1733390516774,-500.0,0.00022191,2]
[344375317,1733390516796,-500.0,0.00022191,2]
[344375318,1733390516818,-500.0,0.00022191,2]
[344375319,1733390516947,-675.21,0.00022191,2]
[344375320,1733390516970,-500.0,0.00022191,2]
[344375321,1733390516994,-500.0,0.00022191,2]
[344375322,1733390517015,-500.0,0.00022191,2]
[344375323,1733390517038,-500.0,0.00022191,2]
[344375324,1733390517060,-500.0,0.00022191,2]
[344375325,1733390517083,-151.0,0.00022191,7]
[344375326,1733390517105,-676.0,0.00022191,2]
[344375327,1733390517127,-500.0,0.00022191,2]
[344375328,1733390517148,-691.29,0.00022191,2]
[344375329,1733390517169,-500.0,0.00022191,2]
[344375330,1733390517189,-500.0,0.00022191,2]
[344375331,1733390517211,-500.0,0.00022191,2]
[344375332,1733390517233,-500.0,0.00022191,2]
[344375333,1733390517255,-754.21,0.00022191,2]
[344375334,1733390517276,-407.174,0.00022191,2]
[344375335,1733390517299,-500.0,0.00022191,2]
[344375336,1733390517320,-292.405346,0.00022191,7]
[344375337,1733390517344,-1001.41,0.00022191,2]
[344375338,1733390517369,-500.0,0.00022191,2]
[344375339,1733390517390,-500.0,0.00022191,2]
[344375340,1733390517411,-292.405346,0.00022191,7]
[344375341,1733390517433,-500.0,0.00022191,2]
[344375342,1733390517456,-576.97,0.00022191,2]
[344375343,1733390517478,-649.89,0.00022191,2]
[344375344,1733390517503,-500.0,0.00022191,2]
[344375345,1733390517525,-500.0,0.00022191,2]
[344375346,1733390517548,-503.43,0.00022191,2]
[344375347,1733390517572,-8986.01,0.00022191,2]
[344375348,1733390517594,-510.98142701,0.00022191,2]
[344375349,1733390517619,-834.8,0.00022191,2]
[344375350,1733390517641,-606.68,0.00022191,2]
[344375351,1733390517666,-500.0,0.00022191,2]
[344375352,1733390517688,-500.0,0.00022191,2]
[344375353,1733390517711,-500.0,0.00022191,2]
[344375354,1733390517733,-338.54452069,0.00022191,2]
[344375355,1733390517755,-500.0,0.00022191,2]
[344375356,1733390517776,-402.35856659,0.00022191,2]
[344375357,1733390517798,-500.0,0.00022191,2]
[344375358,1733390517821,-500.0,0.00022191,2]
[344375359,1733390517848,-500.0,0.00022191,2]
[344375360,1733390517870,-500.0,0.00022191,2]
[344375361,1733390517893,-1618.19,0.00022191,2]
[344375362,1733390517915,-500.0,0.00022191,2]
[344375363,1733390517937,-500.0,0.00022191,2]
[344375364,1733390517960,-500.0,0.00022191,2]
[344375365,1733390517983,-500.0,0.00022191,2]
[344375366,1733390518005,-500.0,0.00022191,2]
[344375367,1733390518027,-500.0,0.00022191,2]
[344375368,1733390518050,-500.0,0.00022191,2]
[344375369,1733390518072,-692.47,0.00022191,2]
[344375370,1733390518097,-544.26,0.00022191,2]
[344375371,1733390518122,-514.91278923,0.00022191,2]
[344375372,1733390518147,-5574.36,0.00022191,2]
[344375373,1733390518169,-500.0,0.00022191,2]
[344375374,1733390518192,-500.0,0.00022191,2]
[344375375,1733390518221,-179.09393258,0.00022191,2]
[344375376,1733390518245,-500.0,0.00022191,2]
[344375377,1733390518268,-500.0,0.00022191,2]
[344375378,1733390518291,-500.0,0.00022191,2]
[344375379,1733390518314,-500.0,0.00022191,2]
[344375380,1733390518337,-526.51,0.00022191,2]
[344375381,1733390518360,-151.0,0.00022191,7]
[344375382,1733390518387,-151.0,0.00022191,7]
[344375383,1733390518409,-500.0,0.00022191,2]
[344375384,1733390518431,-1222.44,0.00022191,2]
[344375385,1733390518453,-500.0,0.00022191,2]
[344375386,1733390518476,-535.19,0.00022191,2]
[344375387,1733390518498,-547.33755601,0.00022191,2]
[344375388,1733390518524,-623.0374825,0.00022191,2]
[344375389,1733390518546,-526.75,0.00022191,2]
[344375390,1733390518569,-500.0,0.00022191,2]
[344375391,1733390518591,-524.30992917,0.00022191,2]
[344375392,1733390518615,-500.0,0.00022191,2]
[344375393,1733390518638,-770.38,0.00022191,2]
[344375394,1733390518745,-676.78,0.00022191,2]
[344375395,1733390518768,-500.0,0.00022191,2]
[344375396,1733390518790,-500.0,0.00022191,2]
[344375397,1733390518816,-1983.95,0.00022191,2]
[344375398,1733390518838,-500.0,0.00022191,2]
[344375399,1733390518860,-500.0,0.00022191,2]
[344375400,1733390518882,-500.0,0.00022191,2]
[344375401,1733390518903,-500.0,0.00022191,2]
[344375402,1733390518925,-500.0,0.00022191,2]
[344375403,1733390518946,-500.0,0.00022191,2]
[344375404,1733390518968,-500.0,0.00022191,2]
[344375405,1733390518990,-500.0,0.00022191,2]
[344375406,1733390519012,-500.0,0.00022191,2]
[344375407,1733390519035,-500.0,0.00022191,2]
[344375408,1733390519057,-684.58,0.00022191,2]
[344375409,1733390519079,-716.61,0.00022191,2]
[344375410,1733390519114,-500.0,0.00022191,2]
[344375411,1733390519140,-1022.43,0.00022191,2]
[344375412,1733390519163,-500.0,0.00022191,2]
[344375413,1733390519186,-503.8611033,0.00022191,2]
[344375414,1733390519211,-500.0,0.00022191,2]
[344375415,1733390519236,-1219.95,0.00022191,2]
[344375416,1733390519261,-500.0,0.00022191,2]
[344375417,1733390519286,-500.0,0.00022191,2]
[344375418,1733390519309,-318.0,0.00022192,2]
[344375419,1733390519332,-151.0,0.000222,7]
[344375420,1733390519354,-151.0,0.000222,9]
[344375421,1733390519380,-162.099379,0.000223,9]
[344375422,1733390519403,-151.0,0.000223,10]
[344375423,1733390519426,-151.0,0.000223,5]
[344375424,1733390519450,-264.234947,0.000223,8]
[344375425,1733390519474,-155.3299716,0.00022348,2]
[344375426,1733390519498,-717.58179795,0.00022365,2]
[344375427,1733390519521,-151.0,0.00022465,7]
[344375428,1733390519543,-151.0,0.00022465,7]
[344375429,1733390519565,-500.0,0.00022465,2]
[344375430,1733390519588,-500.0,0.00022465,2]
[344375431,1733390519611,-500.0,0.00022465,2]
[344375432,1733390519640,-500.0,0.00022465,2]
[344375433,1733390519662,-500.0,0.00022465,2]
[344375434,1733390519684,-500.0,0.00022465,2]
[344375435,1733390519707,-500.0,0.00022465,2]
[344375436,1733390519729,-500.0,0.00022465,2]
[344375437,1733390519752,-500.0,0.00022465,2]
[344375438,1733390519775,-500.0,0.00022465,2]
[344375439,1733390519797,-500.0,0.00022465,2]
[344375440,1733390519819,-500.0,0.00022465,2]
[344375441,1733390519842,-500.0,0.00022465,2]
[344375442,1733390519870,-500.0,0.00022465,2]
[344375443,1733390519893,-563.85765011,0.00022465,2]
[344375444,1733390519916,-500.0,0.00022465,2]
[344375445,1733390519938,-500.0,0.00022465,2]
[344375446,1733390519960,-500.0,0.00022465,2]
[344375447,1733390519982,-426.30461566,0.00022465,2]
[344375448,1733390520005,-500.0,0.00022465,2]
[344375449,1733390520028,-500.0,0.00022465,2]
[344375450,1733390520051,-500.0,0.00022465,2]
[344375451,1733390520075,-500.0,0.00022465,2]
[344375452,1733390520099,-500.0,0.00022465,2]
[344375453,1733390520125,-500.0,0.00022465,2]
[344375454,1733390520147,-500.0,0.00022465,2]
[344375455,1733390520169,-500.0,0.00022465,2]
[344375456,1733390520191,-500.0,0.00022465,2]
[344375457,1733390520215,-500.0,0.00022465,2]
[344375458,1733390520238,-500.0,0.00022465,2]
[344375459,1733390520261,-503.0553601,0.00022465,2]
[344375460,1733390520283,-500.0,0.00022465,2]
[344375461,1733390520305,-513.66695907,0.00022465,2]
[344375462,1733390520325,-518.74580466,0.00022465,2]
[344375463,1733390520346,-500.0,0.00022465,2]
[344375464,1733390520369,-500.0,0.00022465,2]
[344375465,1733390520390,-500.0,0.00022465,2]
[344375466,1733390520413,-537.84095511,0.00022465,2]
[344375467,1733390520520,-500.0,0.00022465,2]
[344375468,1733390520543,-500.0,0.00022465,2]
[344375469,1733390520567,-500.0,0.00022465,2]
[344375470,1733390520589,-500.0,0.00022465,2]
[344375471,1733390520611,-500.0,0.00022465,2]
[344375472,1733390520636,-597.98,0.00022465,2]
[344375473,1733390520656,-547.55065174,0.00022465,2]
[344375474,1733390520678,-500.0,0.00022465,2]
[344375475,1733390520700,-500.0,0.00022465,2]
[344375476,1733390520723,-520.83,0.00022465,2]
[344375477,1733390520745,-500.0,0.00022465,2]
[344375478,1733390520766,-500.0,0.00022465,2]
[344375479,1733390520789,-500.0,0.00022465,2]
[344375480,1733390520811,-500.0,0.00022465,2]
[344375481,1733390520834,-500.0,0.00022465,2]
[344375482,1733390520857,-500.0,0.00022465,2]
[344375483,1733390520888,-500.0,0.00022465,2]
[344375484,1733390520911,-508.46433871,0.00022465,2]
[344375485,1733390520934,-500.0,0.00022465,2]
[344375486,1733390520956,-167.33355269,0.00022465,2]
[344375487,1733390520979,-500.0,0.00022465,2]
[344375488,1733390521002,-500.0,0.00022465,2]
[344375489,1733390521027,-500.0,0.00022465,2]
[344375490,1733390521050,-500.0,0.00022465,2]
[344375491,1733390521073,-547.06500793,0.00022465,2]
[344375492,1733390521095,-500.0,0.00022465,2]
[344375493,1733390521121,-500.0,0.00022465,2]
[344375494,1733390521143,-500.0,0.00022465,2]
[344375495,1733390521166,-500.0,0.00022465,2]
[344375496,1733390521190,-500.0,0.00022465,2]
[344375497,1733390521212,-564.78,0.00022465,2]
[344375498,1733390521236,-500.0,0.00022465,2]
[344375499,1733390521259,-500.0,0.00022465,2]
[344375500,1733390521281,-151.0,0.00022465,7]
[344375501,1733390521304,-500.0,0.00022465,2]
[344375502,1733390521325,-500.0,0.00022465,2]
[344375503,1733390521347,-510.51346997,0.00022465,2]
[344375504,1733390521376,-205.30988614,0.00022465,2]
[344375505,1733390521399,-500.0,0.00022465,2]
[344375506,1733390521420,-500.0,0.00022465,2]
[344375507,1733390521442,-500.0,0.00022465,2]
[344375508,1733390521464,-500.0,0.00022465,2]
[344375509,1733390521485,-500.0,0.00022465,2]
[344375510,1733390521508,-500.0,0.00022465,2]
[344375511,1733390521531,-500.0,0.00022465,2]
[344375512,1733390521556,-500.0,0.00022465,2]
[344375513,1733390521582,-500.0,0.00022465,2]
[344375514,1733390521606,-500.0,0.00022465,2]
[344375515,1733390521632,-500.0,0.00022465,2]
[344375516,1733390521654,-500.0,0.00022465,2]
[344375517,1733390521677,-500.0,0.00022465,2]
[344375518,1733390521699,-500.0,0.00022465,2]
[344375519,1733390521721,-500.0,0.00022465,2]
[344375520,1733390521743,-798.82934897,0.00022465,10]
[344375521,1733390521765,-203.74964906,0.00022465,2]
[344375522,1733390521788,-500.0,0.00022465,2]
[344375523,1733390521810,-500.0,0.00022465,2]
[344375524,1733390521832,-224.6778286,0.00022465,2]
[344375525,1733390521854,-586.8211221,0.00022465,2]
[344375526,1733390521877,-500.0,0.00022465,2]
[344375527,1733390521900,-500.0,0.00022465,2]
[344375528,1733390521922,-500.0,0.00022465,2]
[344375529,1733390521944,-472.60714725,0.00022465,2]
[344375530,1733390521966,-515.03856172,0.00022465,2]
[344375531,1733390521988,-500.0,0.00022465,2]
[344375532,1733390522010,-500.0,0.00022465,2]
[344375533,1733390522033,-500.0,0.00022465,2]
[344375534,1733390522055,-152.70905498,0.00022465,2]
[344375535,1733390522077,-500.0,0.00022465,2]
[344375536,1733390522176,-675.21,0.00022465,2]
[344375537,1733390522200,-500.0,0.00022465,2]
[344375538,1733390522232,-500.0,0.00022465,2]
[344375539,1733390522255,-500.0,0.00022465,2]
[344375540,1733390522278,-500.0,0.00022465,2]
[344375541,1733390522302,-500.0,0.00022465,2]
[344375542,1733390522323,-151.0,0.00022465,7]
[344375543,1733390522344,-151.0,0.00022465,7]
[344375544,1733390522367,-151.0,0.00022465,7]
[344375545,1733390522388,-676.0,0.00022465,2]
[344375546,1733390522409,-500.0,0.00022465,2]
[344375547,1733390522431,-691.29,0.00022465,2]
[344375548,1733390522453,-500.0,0.00022465,2]
[344375549,1733390522476,-500.0,0.00022465,2]
[344375550,1733390522497,-500.0,0.00022465,2]
[344375551,1733390522519,-500.0,0.00022465,2]
[344375552,1733390522541,-754.21,0.00022465,2]
[344375553,1733390522563,-500.0,0.00022465,2]
[344375554,1733390522586,-292.405346,0.00022465,7]
[344375555,1733390522609,-292.405346,0.00022465,7]
[344375556,1733390522636,-292.405346,0.00022465,7]
[344375557,1733390522660,-1001.41,0.00022465,2]
[344375558,1733390522684,-500.0,0.00022465,2]
[344375559,1733390522706,-500.0,0.00022465,2]
[344375560,1733390522733,-292.405346,0.00022465,7]
[344375561,1733390522755,-500.0,0.00022465,2]
[344375562,1733390522777,-292.405346,0.00022465,7]
[344375563,1733390522799,-292.405346,0.00022465,7]
[344375564,1733390522821,-576.97,0.00022465,2]
[344375565,1733390522843,-649.89,0.00022465,2]
[344375566,1733390522864,-500.0,0.00022465,2]
[344375567,1733390522885,-500.0,0.00022465,2]
[344375568,1733390522908,-503.43,0.00022465,2]
[344375569,1733390522931,-8986.01,0.00022465,2]
[344375570,1733390522954,-834.8,0.00022465,2]
[344375571,1733390522977,-500.0,0.00022465,2]
[344375572,1733390523000,-500.0,0.00022465,2]
[344375573,1733390523024,-500.0,0.00022465,2]
[344375574,1733390523046,-500.0,0.00022465,2]
[344375575,1733390523070,-500.0,0.00022465,2]
[344375576,1733390523094,-351.49767997,0.00022465,2]
[344375577,1733390523119,-500.0,0.00022465,2]
[344375578,1733390523143,-500.0,0.00022465,2]
[344375579,1733390523168,-1618.19,0.00022465,2]
[344375580,1733390523192,-500.0,0.00022465,2]
[344375581,1733390523217,-468.12407203,0.00022465,2]
[344375582,1733390523241,-500.0,0.00022465,2]
[344375583,1733390523266,-452.15255884,0.00022465,2]